fUSD/lending_fUSD_20240408
["ID","MTS","AMOUNT","RATE_DAILY","PERIOD"]
[321855142,1712565949186,500.0,0.00037154,30]
[321855143,1712565949253,500.0,0.00037154,30]
[321855144,1712565949309,435.35468129,0.00037154,30]
[321855145,1712565949360,568.68,0.00037154,30]
[321855146,1712565949425,802.99,0.00037154,30]
[321855147,1712565949481,500.0,0.00037154,30]
[321855148,1712565949511,500.0,0.00037154,30]
[321855149,1712565949646,566.52071627,0.00037154,30]
[321855150,1712565950135,1131.78,0.00017508,2]
[321855151,1712565973532,150.0,0.00021999,10]
[321855152,1712565995708,873.80248969,0.00017458,2]
[321855153,1712565997773,11966.03,0.00017633,2]
[321855154,1712565997816,351.08717552,0.00018,2]
[321855155,1712565998068,2623.98943055,0.00017458,2]
[321855156,1712565998266,155.70313686,0.00017458,2]
[321855157,1712566016352,396.69402928,0.00017944,2]
[321855214,1712566073050,184.63,0.00013843,2]
[321855215,1712566091275,1044.51211101,0.00017919,2]
[321855216,1712566091726,210.98240877,0.00017919,2]
[321855217,1712566100112,-155.0,0.00018,2]
[321855218,1712566101753,-193.93233813,0.00018,2]
[321855219,1712566104775,-193.16125836,0.00018,2]
[321855220,1712566108081,-150.0,0.00018,2]
[321855221,1712566108622,-150.0,0.00018,2]
[321855222,1712566109068,-150.0,0.00018,2]
[321855223,1712566109994,-150.0,0.00018,2]
[321855224,1712566110244,205.93031481,0.00017999,2]
[321855225,1712566110608,-150.0,0.00018,2]
[321855226,1712566110666,155.0,0.00018,2]
[321855227,1712566111676,155.0,0.00017999,2]
[321855228,1712566111707,155.0,0.00017999,2]
[321855229,1712566113139,-150.0,0.00018,2]
[321855230,1712566113777,-150.0,0.00018,2]
[321855231,1712566114908,295.94921399,0.00017999,2]
[321855232,1712566115011,155.0,0.00017999,2]
[321855233,1712566115725,404.73102028,0.00017999,2]
[321855234,1712566115816,311.68014491,0.00017919,2]
[321855235,1712566115957,342.50720573,0.00017999,2]
[321855236,1712566117865,-150.0,0.00018,2]
[321855237,1712566118505,155.0,0.00017999,2]
[321855238,1712566118761,-150.0,0.00018,2]
[321855239,1712566119327,522.74695704,0.00017999,2]
[321855240,1712566120062,-150.0,0.00018,2]
[321855241,1712566120233,1058.17735735,0.00017999,2]
[321855242,1712566120494,407.47196267,0.00017999,2]
[321855243,1712566120555,-150.0,0.00018,2]
[321855244,1712566121141,-150.0,0.00018,2]
[321855245,1712566121427,300.0,0.00013458,2]
[321855246,1712566121594,-150.0,0.00018,2]
[321855247,1712566121626,707.83928995,0.00017999,2]
[321855248,1712566121835,166.9536833,0.00017999,2]
[321855249,1712566122142,-150.0,0.00018,2]
[321855250,1712566122611,2174.288655,0.00017999,2]
[321855251,1712566123431,155.0,0.00017999,2]
[321855252,1712566123853,2354.31954713,0.00017999,2]
[321855253,1712566124265,236.17575592,0.00017999,2]
[321855254,1712566125431,736.44917426,0.00017999,2]
[321855255,1712566125955,199.82821578,0.00017999,2]
[321855256,1712566126036,2349.93858112,0.00017999,2]
[321855257,1712566126897,164.119243,0.00017999,2]
[321855258,1712566127276,809.2469135,0.00017999,2]
[321855259,1712566127468,156.86781871,0.00017999,2]
[321855260,1712566128685,155.0,0.00017999,2]
[321855261,1712566128964,155.0,0.00017999,2]
[321855262,1712566131711,207.27012817,0.00017999,2]
[321855263,1712566132305,4572.46475471,0.00017999,2]
[321855264,1712566132926,-150.0,0.00018,2]
[321855265,1712566133828,-150.0,0.00018,2]
[321855266,1712566133979,304.59353416,0.00017999,2]
[321855267,1712566134036,550.75005717,0.00017999,2]
[321855268,1712566134716,400.0,0.00017999,2]
[321855269,1712566134855,210.10177257,0.00017999,2]
[321855270,1712566135514,155.0,0.00017999,2]
[321855271,1712566136440,8884.61561225,0.00017999,2]
[321855272,1712566137462,215.51673044,0.00017998,2]
[321855273,1712566137946,262.4,0.00017346,2]
[321855274,1712566141227,5376.64079373,0.00017998,2]
[321855275,1712566141775,180.72667919,0.00017998,2]
[321855276,1712566142668,266.79799477,0.00017999,2]
[321855277,1712566144380,934.39215825,0.00017999,2]
[321855279,1712566144453,682.51851713,0.00017999,2]
[321855280,1712566148085,155.0,0.00017999,2]
[321855281,1712566148419,1969.2080462,0.00017999,2]
[321855282,1712566148444,-150.0,0.00018,2]
[321855283,1712566148858,-150.0,0.00018,2]
[321855284,1712566151440,23297.98636349,0.00017999,2]
[321855285,1712566152206,217.54377833,0.00017999,2]
[321855286,1712566152878,-150.0,0.00018,2]
[321855287,1712566153817,-150.0,0.00018,2]
[321855288,1712566153942,155.0,0.00017999,2]
[321855289,1712566157338,155.0,0.00017999,2]
[321855290,1712566157405,261.19361918,0.00017924,2]
[321855291,1712566157888,-20.9684391,0.00018,2]
[321855292,1712566157909,-129.0315609,0.00018,2]
[321855293,1712566158466,-150.0,0.00018,2]
[321855294,1712566158898,-150.0,0.00018,2]
[321855295,1712566159587,4466.38983632,0.00017999,2]
[321855296,1712566162525,4312.61714156,0.00017999,2]
[321855297,1712566162935,-150.0,0.00018,2]
[321855298,1712566164060,-150.0,0.00018,2]
[321855299,1712566168708,-150.0,0.00018,2]
[321855300,1712566168755,173.15760461,0.00017924,2]
[321855301,1712566169324,-150.0,0.00018,2]
[321855302,1712566169904,-150.0,0.00018,2]
[321855303,1712566170990,-150.0,0.00018,2]
[321855304,1712566171675,-150.0,0.00018,2]
[321855305,1712566172575,-150.0,0.00018,2]
[321855306,1712566173117,-150.0,0.00018,2]
[321855307,1712566173594,-150.0,0.00018,2]
[321855308,1712566174290,-150.0,0.00018,2]
[321855309,1712566177777,450.0,0.00013499,2]
[321855310,1712566178186,155.0,0.00017999,2]
[321855311,1712566187757,4044.55936361,0.00017999,2]
[321855312,1712566188073,-150.0,0.00018,2]
[321855313,1712566188823,-150.0,0.00018,2]
[321855314,1712566189309,-150.0,0.00018,2]
[321855315,1712566190742,295.94921399,0.00017999,2]
[321855316,1712566190784,205.93031481,0.00017999,2]
[321855317,1712566190996,407.47196267,0.00017999,2]
[321855318,1712566193013,-150.0,0.00018,2]
[321855319,1712566193634,-150.0,0.00018,2]
[321855320,1712566195185,2174.288655,0.00017999,2]
[321855321,1712566195878,522.74695704,0.00017999,2]
[321855322,1712566203676,164.119243,0.00017999,2]
[321855323,1712566203797,236.17575592,0.00017999,2]
[321855324,1712566204211,207.27012817,0.00017999,2]
[321855325,1712566205682,2156.71379602,0.00017919,2]
[321855326,1712566207980,156.86781871,0.00017999,2]
[321855327,1712566208408,550.75005717,0.00017999,2]
[321855328,1712566210946,682.51851713,0.00017999,2]
[321855329,1712566214550,450.0,0.0001791,2]
[321855330,1712566217209,266.79799477,0.00017999,2]
[321855331,1712566221412,186.48,0.00017375,2]
[321855332,1712566226496,155.0,0.00017999,2]
[321855333,1712566227788,155.0,0.00017999,2]
[321855353,1712566232264,-260.9,0.00018006,2]
[321855354,1712566232276,-239.1,0.00018006,2]
[321855355,1712566232286,-278.40403451,0.00018007,2]
[321855356,1712566232296,-1216.05724038,0.00018007,2]
[321855357,1712566232309,-543.97033575,0.00018007,2]
[321855358,1712566232354,-491.59977568,0.00018007,2]
[321855359,1712566232365,-845.07114358,0.00018007,2]
[321855415,1712566233787,-24.41871196,0.00018007,2]
[321855416,1712566233800,-845.77964582,0.00018007,2]
[321855417,1712566233813,-2145.50016096,0.00018007,2]
[321855418,1712566233882,-852.40511334,0.00018007,2]
[321855419,1712566233892,-47.67193182,0.00018008,3]
[321855420,1712566233906,-106.93806818,0.00018008,3]
[321855421,1712566233916,-177.98,0.00018008,3]
[321855422,1712566233926,-498.43354235,0.00018008,3]
[321855423,1712566233981,-35.55645765,0.00018008,3]
[321855424,1712566233991,-1147.02239218,0.00018008,2]
[321855425,1712566234001,-124.30006307,0.00018009,2]
[321855426,1712566234013,-3387.54993693,0.00018009,2]
[321855427,1712566234022,-150.99,0.00018009,2]
[321855428,1712566234032,-792.48078853,0.00018011,2]
[321855429,1712566234044,-2066.6705107,0.00018011,2]
[321855430,1712566234054,-22.27798922,0.00018016,2]
[321855431,1712566234066,-903.55095595,0.00018016,2]
[321855432,1712566234096,-1124.3770756,0.00018016,2]
[321855433,1712566234106,-155.0,0.00018016,2]
[321855434,1712566234115,-266.11691405,0.00018016,2]
[321855435,1712566234127,-179.48156981,0.00018016,2]
[321855436,1712566234137,-312.54704425,0.00018016,2]
[321855437,1712566234146,-204.0788696,0.00018016,2]
[321855438,1712566234156,-155.0,0.00018016,2]
[321855439,1712566234165,-155.0,0.00018016,2]
[321855440,1712566234174,-155.63310004,0.00018016,2]
[321855441,1712566234184,-158.57509179,0.00018016,2]
[321855442,1712566234195,-155.46160884,0.00018016,2]
[321855443,1712566234205,-155.60731894,0.00018016,2]
[321855444,1712566234216,-156.63560241,0.00018016,2]
[321855445,1712566234229,-106.67189698,0.00018016,2]
[321855446,1712566234258,-49.31247459,0.00018016,2]
[321855447,1712566234269,-344.13732937,0.00018016,2]
[321855448,1712566234279,-213.67979464,0.00018016,2]
[321855449,1712566234288,-932.73144093,0.00018016,2]
[321855450,1712566234299,-437.49826024,0.00018016,2]
[321855451,1712566234310,-156.12730211,0.00018016,2]
[321855452,1712566234319,-244.85592718,0.00018016,2]
[321855453,1712566234329,-1101.61931971,0.00018016,2]
[321855454,1712566234338,-181.99034006,0.00018016,2]
[321855455,1712566234348,-671.5611723,0.00018016,2]
[321855456,1712566234358,-269.95697862,0.00018016,2]
[321855457,1712566234367,-190.17443291,0.00018016,2]
[321855458,1712566234377,-807.96572199,0.00018016,2]
[321855459,1712566234387,-156.11146322,0.00018016,2]
[321855460,1712566234397,-283.15351339,0.00018016,2]
[321855461,1712566234407,-450.72564752,0.00018016,2]
[321855462,1712566234417,-353.02276508,0.00018016,2]
[321855463,1712566234427,-156.18240919,0.00018016,2]
[321855464,1712566234436,-400.0,0.00018016,2]
[321855465,1712566234446,-2780.64290179,0.00018016,2]
[321855466,1712566234456,-159.99013655,0.00018016,2]
[321855467,1712566234466,-157.76540565,0.00018016,2]
[321855468,1712566234476,-367.25682148,0.00018016,2]
[321855469,1712566234486,-1728.20393457,0.00018016,2]
[321855470,1712566234496,-3268.10655168,0.00018016,2]
[321855471,1712566234506,-1197.51130542,0.00018016,2]
[321855472,1712566234516,-4466.38983632,0.00018016,2]
[321855473,1712566234526,-822.83905098,0.00018016,2]
[321855474,1712566234535,-287.1965243,0.00018016,2]
[321855475,1712566234545,-302.0,0.00018016,2]
[321855476,1712566234555,-301.45631167,0.00018016,2]
[321855477,1712566234565,-295.14318207,0.00018016,2]
[321855478,1712566234575,-206.52773642,0.00018016,2]
[321855479,1712566234584,-522.74695704,0.00018016,2]
[321855480,1712566234594,-248.63586851,0.00018016,2]
[321855481,1712566234603,-163.90756858,0.00018016,2]
[321855482,1712566234613,-388.08226001,0.00018016,2]
[321855483,1712566234623,-206.24021356,0.00018016,2]
[321855484,1712566234632,-572.96919349,0.00018016,2]
[321855485,1712566234641,-682.51851713,0.00018016,2]
[321855486,1712566234651,-156.99919388,0.00018016,2]
[321855487,1712566234660,-574.0964279,0.00018017,2]
[321855488,1712566234670,-77989.67397099,0.00018018,2]
[321855519,1712566239139,210.98240875,0.00017919,2]
[321855520,1712566239319,-1946.38168202,0.00018016,2]
[321855521,1712566239329,-325.38194867,0.00018016,2]
[321855522,1712566239338,-1511.53032355,0.00018018,2]
[321855523,1712566239349,-4671.4119653,0.00018018,2]
[321855524,1712566239361,-1514.55476768,0.00018018,2]
[321855525,1712566239408,-814.85641819,0.00018018,2]
[321855526,1712566239443,-716.70920156,0.00018018,2]
[321855527,1712566239456,-3335.82664354,0.00018018,2]
[321855528,1712566239467,-1628.57068115,0.00018018,2]
[321855529,1712566239479,-6392.09359649,0.00018018,2]
[321855530,1712566239490,-485.91896068,0.00018018,2]
[321855531,1712566239501,-2466.4214038,0.00018018,2]
[321855532,1712566239517,-942.77419458,0.00018018,2]
[321855533,1712566239528,-1551.8482014,0.00018018,2]
[321855534,1712566239559,-672.62676328,0.00018018,2]
[321855535,1712566239616,-847.64896932,0.00018018,2]
[321855536,1712566239634,-699819.66690924,0.00018018,2]
[321855537,1712566239644,-202476.67995837,0.00018019,2]
[321855538,1712566239653,-1047.9,0.00018019,2]
[321855539,1712566239662,-3983.61,0.00018024,2]
[321855540,1712566239671,-3908.98,0.00018024,2]
[321855541,1712566239681,-327.9,0.00018024,2]
[321855542,1712566239691,-5863.24,0.00018027,2]
[321855543,1712566239701,-150.99,0.00018027,2]
[321855544,1712566239710,-499.99,0.00018027,2]
[321855545,1712566239719,-150.0,0.00018027,2]
[321855546,1712566239729,-9469.57055108,0.00018043,2]
[321855547,1712566239738,-410.5443049,0.00018044,2]
[321855548,1712566239747,-178.13611517,0.00018047,2]
[321855549,1712566239758,-212.99106756,0.00018047,2]
[321855550,1712566239768,-155.21592532,0.00018047,2]
[321855551,1712566239777,-155.1409266,0.00018047,2]
[321855552,1712566239787,-157.15123997,0.00018047,2]
[321855553,1712566239797,-443.08539697,0.00018047,2]
[321855554,1712566239808,-155.41851059,0.00018047,2]
[321855555,1712566239817,-309.3557049,0.00018047,2]
[321855556,1712566239826,-500.0,0.00018182,2]
[321855557,1712566239840,-23900.0,0.00018182,2]
[321855558,1712566239850,-386.01,0.00018196,2]
[321855559,1712566239860,-2156.71379596,0.00018215,2]
[321855560,1712566239869,-171.3412117,0.00018222,2]
[321855561,1712566239880,-1805.84,0.00018234,2]
[321855562,1712566239889,-1745.23,0.00018265,2]
[321855563,1712566239898,-1044.512111,0.00018295,2]
[321855564,1712566239907,-396.69402921,0.00018313,2]
[321855565,1712566239917,-21724.93877615,0.00018458,2]
[321855566,1712566239926,-2156.71379596,0.00018511,2]
[321855567,1712566239937,-200.0,0.00018521,2]
[321855568,1712566239949,-150.0,0.00018534,2]
[321855569,1712566239961,-851.74741821,0.00018562,2]
[321855570,1712566239971,-178.107344,0.0001863,2]
[321855571,1712566239980,-1044.512111,0.00018672,2]
[321855572,1712566239989,-396.69402921,0.00018683,2]
[321855573,1712566239999,-200.0,0.00018718,2]
[321855574,1712566240008,-562.84903058,0.0001874,2]
[321855575,1712566240017,-161.2304305,0.0001874,2]
[321855576,1712566240027,-156.43259466,0.0001874,2]
[321855577,1712566240035,-246.08805384,0.0001874,2]
[321855578,1712566240044,-204.57955784,0.0001874,2]
[321855579,1712566240054,-155.00001428,0.0001874,2]
[321855580,1712566240063,-155.52918045,0.0001874,2]
[321855582,1712566240072,-155.54624582,0.0001874,2]
[321855584,1712566240081,-197.44350398,0.0001874,2]
[321855586,1712566240091,-188.36194091,0.0001874,2]
[321855588,1712566240100,-350.76102204,0.0001874,2]
[321855589,1712566240110,-276.2855843,0.0001874,2]
[321855590,1712566240119,-287.55305109,0.0001874,2]
[321855591,1712566240128,-157.55729644,0.0001874,2]
[321855592,1712566240137,-155.84776155,0.0001874,2]
[321855593,1712566240147,-175.31276833,0.0001874,2]
[321855594,1712566240156,-156.10305387,0.0001874,2]
[321855595,1712566240165,-362.27924693,0.0001874,2]
[321855596,1712566240174,-260.29951002,0.0001874,2]
[321855597,1712566240183,-155.32365659,0.0001874,2]
[321855598,1712566240193,-155.0,0.00018741,2]
[321855599,1712566240205,-500.0,0.00018743,2]
[321855600,1712566240214,-169.12,0.0001877,2]
[321855601,1712566240224,-2156.71379596,0.00018808,2]
[321855602,1712566240235,-182.94,0.00018858,2]
[321855603,1712566240244,-385.49,0.00018864,2]
[321855604,1712566240254,-1469.04427283,0.00018899,2]
[321855605,1712566240455,-152.27,0.00018978,2]
[321855606,1712566240467,-405.06,0.00018982,2]
[321855607,1712566240477,-425.8673703,0.00018986,2]
[321855608,1712566240487,-737.6,0.0001899,2]
[321855609,1712566240497,-335.28945118,0.00018996,2]
[321855610,1712566240506,-200.18140386,0.00018996,2]
[321855611,1712566240515,-200.50713062,0.00018996,2]
[321855612,1712566240525,-224.23271556,0.00018996,2]
[321855613,1712566240534,-284.30799219,0.00018996,2]
[321855614,1712566240544,-193.16416777,0.00018996,2]
[321855615,1712566240554,-236.18996574,0.00018996,2]
[321855616,1712566240564,-262.97889526,0.00018996,2]
[321855617,1712566240574,-201.70377645,0.00018996,2]
[321855618,1712566240583,-162.5270178,0.00018996,2]
[321855619,1712566240592,-157.23066551,0.00018997,2]
[321855620,1712566240603,-155.15905358,0.00018997,2]
[321855621,1712566240613,-2238.1850999,0.00018997,2]
[321855622,1712566240623,-620.77,0.00018999,2]
[321855623,1712566240633,-11544.3322131,0.00019,2]
[321855624,1712566240643,-233.3533178,0.00019,2]
[321855625,1712566240653,-1044.512111,0.00019048,2]
[321855626,1712566240662,-396.69402921,0.00019052,2]
[321855627,1712566240671,-1469.04427277,0.0001908,2]
[321855628,1712566240681,-2156.71379596,0.00019104,2]
[321855629,1712566240690,-152.27,0.00019119,2]
[321855630,1712566240700,-180.95,0.00019124,2]
[321855631,1712566240709,-329.93572213,0.00019178,2]
[321855632,1712566240719,-500.0,0.00019178,2]
[321855633,1712566240730,-454.61203111,0.00019178,2]
[321855634,1712566240740,-500.0,0.00019178,2]
[321855635,1712566240749,-500.0,0.00019178,2]
[321855636,1712566240758,-160.58676771,0.00019178,2]
[321855637,1712566240768,-152.64602803,0.00019178,2]
[321855638,1712566240778,-410.70648513,0.00019178,2]
[321855639,1712566240788,-1317.44,0.00019178,2]
[321855640,1712566240798,-8006.68,0.00019178,2]
[321855641,1712566240807,-319.81,0.0001918,2]
[321855642,1712566240817,-319.81,0.0001918,2]
[321855643,1712566240827,-319.81,0.0001918,2]
[321855644,1712566240836,-319.81,0.0001918,2]
[321855645,1712566240846,-319.81,0.0001918,2]
[321855646,1712566240855,-261.19361917,0.00019239,2]
[321855647,1712566240864,-173.15760461,0.00019239,2]
[321855648,1712566240874,-152.27,0.00019261,2]
[321855649,1712566240883,-1469.04427277,0.00019261,2]
[321855650,1712566240893,-309.22,0.00019378,3]
[321855651,1712566240903,-355.96,0.00019378,3]
[321855652,1712566240912,-2156.71379596,0.000194,2]
[321855653,1712566240922,-152.27,0.00019402,2]
[321855654,1712566240931,-396.69402921,0.00019421,2]
[321855655,1712566240941,-1044.512111,0.00019424,2]
[321855656,1712566240951,-1469.04427277,0.00019442,2]
[321855657,1712566240960,-178.107344,0.00019452,2]
[321855658,1712566240970,-262.4,0.00019515,2]
[321855659,1712566240979,-152.27,0.00019543,2]
[321855660,1712566240988,-1469.04427277,0.00019623,2]
[321855661,1712566240998,-152.27,0.00019685,2]
[321855662,1712566241007,-170.21,0.00019688,2]
[321855663,1712566241017,-2156.71379596,0.00019696,2]
[321855664,1712566241027,-612.50810049,0.00019742,2]
[321855665,1712566241037,-396.69402921,0.0001979,2]
[321855666,1712566241046,-324.56,0.00019792,2]
[321855667,1712566241056,-324.56,0.00019797,2]
[321855668,1712566241065,-1044.512111,0.000198,2]
[321855669,1712566241074,-324.56,0.00019803,2]
[321855670,1712566241083,-1469.04427277,0.00019805,2]
[321855671,1712566241092,-324.56,0.00019808,2]
[321855672,1712566241101,-158.43985894,0.00019808,2]
[321855673,1712566241111,-324.56,0.00019813,2]
[321855674,1712566241120,-324.56,0.00019818,2]
[321855675,1712566241129,-324.56,0.00019823,2]
[321855676,1712566241139,-152.27,0.00019826,2]
[321855677,1712566241148,-324.56,0.00019829,2]
[321855678,1712566241157,-324.56,0.00019834,2]
[321855679,1712566241167,-324.56,0.00019839,2]
[321855680,1712566241176,-324.56,0.00019844,2]
[321855681,1712566241185,-324.56,0.0001985,2]
[321855682,1712566241194,-324.56,0.00019855,2]
[321855683,1712566241205,-324.56,0.0001986,2]
[321855684,1712566241214,-324.56,0.00019865,2]
[321855685,1712566241223,-324.56,0.0001987,2]
[321855686,1712566241237,-324.56,0.00019876,2]
[321855687,1712566241246,-324.56,0.00019881,2]
[321855688,1712566241256,-324.56,0.00019886,2]
[321855689,1712566241265,-324.56,0.00019891,2]
[321855690,1712566241276,-171.29702389,0.000199,2]
[321855691,1712566241285,-736.97126365,0.000199,2]
[321855692,1712566241294,-171.29702386,0.00019964,2]
[321855693,1712566241304,-152.27,0.00019967,2]
[321855694,1712566241314,-1469.04427277,0.00019986,2]
[321855695,1712566241323,-1147.02239218,0.0001999,2]
[321855696,1712566241332,-319.81,0.0001999,2]
[321855697,1712566241341,-319.81,0.0001999,2]
[321855698,1712566241350,-319.81,0.0001999,2]
[321855699,1712566241359,-319.81,0.0001999,2]
[321855700,1712566241367,-319.81,0.0001999,2]
[321855701,1712566241376,-485.81668189,0.0002,2]
[321855702,1712566241385,-20163.40939977,0.0002,2]
[321855703,1712566241396,-624.22352962,0.0002,2]
[321855704,1712566241406,-156.11749298,0.0002,2]
[321855705,1712566241416,-155.0,0.0002,2]
[321855706,1712566241425,-185.3357629,0.0002,2]
[321855707,1712566241434,-1301855.70935183,0.0002,2]
[321855708,1712566241443,-155.0,0.0002,2]
[321855709,1712566241454,-326.56857755,0.0002,2]
[321855710,1712566241463,-156.80512559,0.0002,2]
[321855711,1712566241472,-2552.97,0.0002,2]
[321855712,1712566241481,-736.97126365,0.00020063,2]
[321855713,1712566241490,-171.29702386,0.00020153,2]
[321855714,1712566241501,-396.69402921,0.0002016,2]
[321855715,1712566241510,-1469.04427277,0.00020167,2]
[321855716,1712566241520,-173.74,0.00020173,2]
[321855717,1712566241530,-1044.512111,0.00020177,2]
[321855718,1712566241540,-736.97126365,0.00020227,2]
[321855719,1712566241550,-905.99,0.00020241,2]
[321855720,1712566241560,-178.107344,0.00020274,2]
[321855721,1712566241569,-171.29702386,0.00020341,2]
[321855722,1712566241578,-1469.04427277,0.00020348,2]
[321855723,1712566241588,-189.123,0.00020381,2]
[321855724,1712566241597,-736.97126365,0.0002039,2]
[321855725,1712566241607,-150.0,0.000205,2]
[321855726,1712566241619,-591.0934888,0.00020525,2]
[321855727,1712566241629,-161.77331195,0.00020525,2]
[321855728,1712566241640,-518.9679,0.00020527,2]
[321855729,1712566241649,-1450.2673,0.00020527,2]
[321855730,1712566241658,-6746.8092,0.00020527,2]
[321855731,1712566241668,-171.29702386,0.00020529,2]
[321855732,1712566241678,-1469.04427277,0.00020529,2]
[321855733,1712566241687,-396.69402921,0.00020529,2]
[321855734,1712566241696,-24659.81842923,0.00020532,2]
[321855735,1712566241706,-591.09348879,0.00020539,2]
[321855736,1712566241715,-1632.9547015,0.00020539,2]
[321855737,1712566241724,-161.77331193,0.00020539,2]
[321855738,1712566241734,-591.09348879,0.00020553,2]
[321855739,1712566241743,-1044.512111,0.00020553,2]
[321855740,1712566241752,-1632.9547015,0.00020553,2]
[321855741,1712566241761,-261.19361917,0.00020553,2]
[321855742,1712566241771,-173.15760461,0.00020553,2]
[321855743,1712566241780,-161.77331193,0.00020553,2]
[321855744,1712566241791,-736.97126365,0.00020553,2]
[321855745,1712566241801,-2359.03979421,0.00020563,2]
[321855746,1712566241810,-160.0,0.000206,2]
[321855747,1712566241820,-171.3412117,0.00020613,2]
[321855748,1712566241830,-171.3412117,0.00020613,2]
[321855749,1712566241840,-1147.02239218,0.00020615,2]
[321855750,1712566241850,-198.08381985,0.00020623,2]
[321855751,1712566241859,-207.04770003,0.00020623,2]
[321855752,1712566241869,-174.72333343,0.00020623,2]
[321855753,1712566241879,-463.19460787,0.00020623,2]
[321855754,1712566241891,-232.897238,0.00020623,2]
[321855755,1712566241901,-178.23121329,0.00020623,2]
[321855756,1712566241911,-1324.6513758,0.00020623,2]
[321855757,1712566241920,-173.91631471,0.00020623,2]
[321855758,1712566241930,-382.46531515,0.00020623,2]
[321855759,1712566241939,-166.3320943,0.00020623,2]
[321855760,1712566241950,-155.33440815,0.00020623,2]
[321855761,1712566241959,-170.84944664,0.00020623,2]
[321855762,1712566241969,-232.75895288,0.00020623,2]
[321855763,1712566241978,-165.8134186,0.00020623,2]
[321855764,1712566241988,-155.54210939,0.00020623,2]
[321855765,1712566241997,-203.58764482,0.00020623,2]
[321855766,1712566242011,-306.00924752,0.00020623,2]
[321855767,1712566242021,-155.0,0.00020623,2]
[321855768,1712566242031,-5834332.34440144,0.00020623,2]
[321855769,1712566242041,-155.35884846,0.00020625,2]
[321855770,1712566242052,-155.0,0.00020625,2]
[321855771,1712566242062,-155.56444621,0.00020625,2]
[321855772,1712566242071,-175.10250801,0.00020625,2]
[321855773,1712566242081,-375.77516328,0.00020625,2]
[321855774,1712566242091,-508.83319141,0.00020625,2]
[321855775,1712566242101,-3123.01868018,0.00020625,2]
[321855776,1712566242111,-704.64333317,0.00020625,2]
[321855777,1712566242121,-155.0,0.00020625,2]
[321855778,1712566242131,-646796.7718213,0.00020625,2]
[321855779,1712566242141,-23968.33144089,0.00020625,2]
[321855780,1712566242150,-160.86784009,0.00020625,2]
[321855781,1712566242159,-161.25740967,0.00020625,2]
[321855782,1712566242168,-309.45826612,0.00020625,2]
[321855783,1712566242178,-155.92385022,0.00020625,2]
[321855784,1712566242187,-554.25398322,0.00020626,2]
[321855785,1712566242196,-11879832.62074854,0.00020627,2]
[321855786,1712566242242,-14866331.0915262,0.00020627,2]
[321855787,1712566242253,-475576.06869164,0.00020627,2]
[321855788,1712566242265,-852.6373194,0.00020627,2]
[321855789,1712566242276,-754.63353936,0.00020627,2]
[321855790,1712566242764,-756.71595013,0.00020627,2]
[321855791,1712566242777,-838.12154448,0.00020627,2]
[321855792,1712566242853,-676.9962219,0.00020627,2]
[321855793,1712566242878,-761.03918508,0.00019993,2]
[321855794,1712566242890,-1395.67461088,0.00019993,2]
[321855795,1712566242900,-7796.40473457,0.00020627,2]
[321855796,1712566242912,-963.02654902,0.00020627,2]
[321855797,1712566242944,-770.88743162,0.00020627,2]
[321855798,1712566242956,-792.335818,0.00020627,2]
[321855820,1712566244559,-287.35816769,0.00018016,2]
[321855821,1712566244568,-158.76738103,0.00018016,2]
[321855822,1712566244577,-5054.73385831,0.00018017,2]
[321855823,1712566244587,-156.69402792,0.00018017,2]
[321855824,1712566244596,-210.98240875,0.00019864,2]
[321855825,1712566244606,-17157.39561352,0.00020627,2]
[321855826,1712566244637,-341.78637229,0.00020627,2]
[321855827,1712566244656,-837.8243897,0.00020627,2]